fUST/lending_fUST_20240225
["ID","MTS","AMOUNT","RATE_DAILY","PERIOD"]
[315059726,1708797046687,-500.0,0.00020821,2]
[315059727,1708797046697,-1696.47,0.00020821,2]
[315059728,1708797046705,-648.83,0.00020821,2]
[315059729,1708797046714,-530.69,0.00020821,2]
[315059730,1708797046724,-5173.66,0.00020821,2]
[315059731,1708797046733,-500.0,0.00020821,2]
[315059732,1708797046742,-2018.1,0.00020821,2]
[315059733,1708797046751,-5000.0,0.00020823,2]
[315059734,1708797046760,-5000.0,0.00020837,2]
[315059735,1708797046769,-300.0,0.00020849,2]
[315059736,1708797046778,-5000.0,0.00020853,2]
[315059737,1708797046787,-5000.0,0.00020859,2]
[315059738,1708797046796,-5000.0,0.00020879,2]
[315059739,1708797046805,-2874.92568718,0.00020888,2]
[315059740,1708797046814,-4360.92523724,0.000209,3]
[315059741,1708797046823,-5000.0,0.00020903,2]
[315059742,1708797046831,-151.228062,0.0002091,2]
[315059743,1708797046840,-185.710346,0.0002091,2]
[315059744,1708797046850,-500.0,0.0002091,2]
[315059745,1708797046859,-500.0,0.0002091,2]
[315059746,1708797046869,-500.0,0.0002091,2]
[315059747,1708797046877,-500.0,0.0002091,2]
[315059748,1708797046887,-500.0,0.0002091,2]
[315059749,1708797046895,-500.0,0.0002091,2]
[315059750,1708797046904,-500.0,0.0002091,2]
[315059751,1708797046912,-500.0,0.0002091,2]
[315059752,1708797046921,-500.0,0.0002091,2]
[315059753,1708797046931,-500.0,0.0002091,2]
[315059754,1708797046940,-500.0,0.0002091,2]
[315059755,1708797046949,-500.0,0.0002091,2]
[315059756,1708797046959,-344.6504169,0.0002091,2]
[315059757,1708797046968,-500.0,0.0002091,2]
[315059758,1708797046977,-500.0,0.0002091,2]
[315059759,1708797046986,-500.0,0.0002091,2]
[315059760,1708797046995,-500.0,0.0002091,2]
[315059761,1708797047004,-722.97669446,0.0002091,2]
[315059762,1708797047013,-722.97669446,0.0002091,2]
[315059763,1708797047022,-722.97669446,0.0002091,2]
[315059764,1708797047031,-722.97669446,0.0002091,2]
[315059765,1708797047040,-722.97669446,0.0002091,2]
[315059766,1708797047050,-722.97669446,0.0002091,2]
[315059767,1708797047059,-722.97669446,0.0002091,2]
[315059768,1708797047068,-722.97669446,0.0002091,2]
[315059769,1708797047078,-722.97669446,0.0002091,2]
[315059770,1708797047087,-722.97669446,0.0002091,2]
[315059771,1708797047096,-722.97669446,0.0002091,2]
[315059772,1708797047105,-722.97669446,0.0002091,2]
[315059773,1708797047113,-166.666666,0.00020973,2]
[315059774,1708797047122,-9911.06169281,0.00021,2]
[315059775,1708797047132,-195.32043419,0.00021,2]
[315059776,1708797047142,-62604.87949704,0.00021,2]
[315059777,1708797047153,-234.21712469,0.00021,2]
[315059778,1708797047163,-20932.34467601,0.00021,2]
[315059779,1708797047172,-31112.3699279,0.00021,2]
[315059780,1708797047181,-3381.56402066,0.00021,2]
[315059781,1708797047191,-532.09207591,0.00021,2]
[315059782,1708797047200,-151.0,0.00021,2]
[315059783,1708797047210,-279.089119,0.00021,2]
[315059784,1708797047219,-450.195583,0.00021,2]
[315059785,1708797047230,-450.195583,0.00021,2]
[315059786,1708797047240,-770.78131,0.00021,2]
[315059787,1708797047249,-770.78131,0.00021,2]
[315059788,1708797047257,-5000.0,0.0002104,2]
[315059789,1708797047267,-7115.51939913,0.0002104,2]
[315059790,1708797047276,-1778.87984978,0.0002104,2]
[315059791,1708797047286,-300.0,0.00021041,2]
[315059792,1708797047296,-185.760894,0.00021042,2]
[315059793,1708797047305,-222.913073,0.00021042,2]
[315059794,1708797047314,-363.435186,0.00021042,2]
[315059795,1708797047323,-152.693571,0.00021042,2]
[315059796,1708797047332,-152.514636,0.00021042,2]
[315059797,1708797047341,-168.992843,0.00021042,2]
[315059798,1708797047350,-211.741148,0.00021059,2]
[315059799,1708797047359,-199.163695,0.00021059,2]
[315059800,1708797047368,-175.567272,0.0002107,2]
[315059801,1708797047378,-178.470543,0.0002107,2]
[315059802,1708797047387,-50000.0,0.00021083,2]
[315059803,1708797047396,-500.0,0.00021095,2]
[315059804,1708797047406,-500.0,0.00021095,2]
[315059805,1708797047415,-534.01,0.00021095,2]
[315059806,1708797047424,-500.0,0.00021095,2]
[315059807,1708797047538,-997.34,0.00021095,2]
[315059808,1708797047548,-500.0,0.00021095,2]
[315059809,1708797047557,-638.57,0.00021095,2]
[315059810,1708797047567,-713.63,0.00021095,2]
[315059811,1708797047576,-3292.48,0.00021095,2]
[315059812,1708797047584,-1108.84,0.00021095,2]
[315059813,1708797047593,-755.17,0.00021095,2]
[315059814,1708797047603,-924.56,0.00021095,2]
[315059815,1708797047612,-1624.67,0.00021095,2]
[315059816,1708797047622,-1070.74,0.00021095,2]
[315059817,1708797047630,-756.52,0.00021095,2]
[315059818,1708797047639,-1444.81,0.00021095,2]
[315059819,1708797047649,-660.55,0.00021095,2]
[315059820,1708797047658,-1698.5,0.00021095,2]
[315059821,1708797047668,-722.34,0.00021095,2]
[315059822,1708797047678,-7959.91,0.00021095,2]
[315059823,1708797047687,-6758.25,0.00021095,2]
[315059824,1708797047696,-500.0,0.00021095,2]
[315059825,1708797047705,-1696.47,0.00021095,2]
[315059826,1708797047714,-648.83,0.00021095,2]
[315059827,1708797047724,-530.69,0.00021095,2]
[315059828,1708797047732,-5173.66,0.00021095,2]
[315059829,1708797047742,-500.0,0.00021095,2]
[315059830,1708797047751,-2018.1,0.00021095,2]
[315059831,1708797047760,-1000.0,0.0002111,2]
[315059832,1708797047770,-13193.56869506,0.0002111,2]
[315059833,1708797047779,-1000.0,0.0002111,2]
[315059834,1708797047789,-1000.0,0.0002111,2]
[315059835,1708797047800,-1000.0,0.0002111,2]
[315059836,1708797047809,-2116.07930016,0.0002111,2]
[315059837,1708797047818,-1000.0,0.0002111,2]
[315059838,1708797047827,-6644.85926767,0.0002111,2]
[315059839,1708797047837,-1000.0,0.0002111,2]
[315059840,1708797047846,-8028.21036723,0.0002111,2]
[315059841,1708797047855,-1000.0,0.0002111,2]
[315059842,1708797047864,-1000.0,0.0002111,2]
[315059843,1708797047872,-9530.8241115,0.0002111,2]
[315059844,1708797047882,-1000.0,0.0002111,2]
[315059845,1708797047892,-1000.0,0.0002111,2]
[315059846,1708797047901,-19696.4847125,0.0002111,2]
[315059847,1708797047910,-1000.0,0.0002111,2]
[315059848,1708797047919,-6557.41250033,0.0002111,2]
[315059849,1708797047929,-1000.0,0.0002111,2]
[315059850,1708797047939,-1000.0,0.0002111,2]
[315059851,1708797047949,-1000.0,0.0002111,2]
[315059852,1708797047958,-1000.0,0.0002111,2]
[315059853,1708797047968,-7239.88251536,0.0002111,2]
[315059854,1708797047977,-1000.0,0.0002111,2]
[315059855,1708797047986,-1000.0,0.0002111,2]
[315059856,1708797047995,-7246.43206899,0.0002111,2]
[315059857,1708797048004,-7555.02000637,0.0002111,2]
[315059858,1708797048014,-15505.8097581,0.0002111,2]
[315059859,1708797048023,-1000.0,0.0002111,2]
[315059860,1708797048032,-12877.66001652,0.0002111,2]
[315059861,1708797048041,-1000.0,0.0002111,2]
[315059862,1708797048052,-4482.86926114,0.0002111,2]
[315059863,1708797048062,-1000.0,0.0002111,2]
[315059864,1708797048072,-151.0,0.0002111,2]
[315059865,1708797048081,-1000.0,0.0002111,2]
[315059866,1708797048091,-1000.0,0.0002111,2]
[315059867,1708797048100,-1000.0,0.0002111,2]
[315059868,1708797048109,-9213.73151938,0.0002111,2]
[315059869,1708797048118,-1000.0,0.0002111,2]
[315059870,1708797048128,-1000.0,0.0002111,2]
[315059871,1708797048137,-450.195583,0.0002111,2]
[315059872,1708797048147,-450.195583,0.0002111,2]
[315059873,1708797048158,-9631.82054937,0.0002111,2]
[315059874,1708797048168,-1000.0,0.0002111,2]
[315059875,1708797048177,-1000.0,0.0002111,2]
[315059876,1708797048186,-9807.68514795,0.0002111,2]
[315059877,1708797048195,-1000.0,0.0002111,2]
[315059878,1708797048205,-770.78131,0.0002111,2]
[315059879,1708797048214,-770.78131,0.0002111,2]
[315059880,1708797048225,-1000.0,0.00021204,2]
[315059881,1708797048234,-1000.0,0.00021204,2]
[315059882,1708797048244,-1000.0,0.00021204,2]
[315059883,1708797048253,-1000.0,0.00021204,2]
[315059884,1708797048262,-1000.0,0.00021204,2]
[315059885,1708797048271,-1000.0,0.00021204,2]
[315059886,1708797048281,-1000.0,0.00021204,2]
[315059887,1708797048291,-1000.0,0.00021204,2]
[315059888,1708797048303,-1000.0,0.00021204,2]
[315059889,1708797048311,-1000.0,0.00021204,2]
[315059890,1708797048321,-1000.0,0.00021204,2]
[315059891,1708797048330,-1000.0,0.00021204,2]
[315059892,1708797048340,-1000.0,0.00021204,2]
[315059893,1708797048349,-300.0,0.00021234,2]
[315059894,1708797048358,-1000.0,0.00021251,2]
[315059895,1708797048367,-1000.0,0.00021251,2]
[315059896,1708797048376,-1000.0,0.00021251,2]
[315059897,1708797048386,-1000.0,0.00021251,2]
[315059898,1708797048395,-1000.0,0.00021251,2]
[315059899,1708797048404,-1000.0,0.00021251,2]
[315059900,1708797048420,-1000.0,0.00021251,2]
[315059901,1708797048430,-1000.0,0.00021251,2]
[315059902,1708797048439,-1000.0,0.00021251,2]
[315059903,1708797048448,-1000.0,0.00021251,2]
[315059904,1708797048458,-1000.0,0.00021251,2]
[315059905,1708797048467,-1000.0,0.00021251,2]
[315059906,1708797048476,-1000.0,0.00021251,2]
[315059907,1708797048485,-1000.0,0.00021251,2]
[315059908,1708797048494,-1000.0,0.00021251,2]
[315059909,1708797048503,-211.741148,0.00021316,2]
[315059910,1708797048512,-199.163695,0.00021316,2]
[315059911,1708797048521,-942.39776393,0.00021321,2]
[315059912,1708797048531,-178.2328671,0.00021321,2]
[315059913,1708797048540,-680.77315082,0.00021321,2]
[315059914,1708797048552,-1401.08203824,0.00021321,2]
[315059915,1708797048561,-207.84458826,0.00021321,2]
[315059916,1708797048571,-1000.0,0.00021321,2]
[315059917,1708797048581,-517.13446538,0.00021321,2]
[315059918,1708797048590,-634.58847182,0.00021321,2]
[315059919,1708797048599,-969.83285832,0.00021321,2]
[315059920,1708797048607,-320.20494722,0.00021321,2]
[315059921,1708797048617,-247.43710399,0.00021321,2]
[315059922,1708797048626,-687.9871821,0.00021321,2]
[315059923,1708797048635,-947.2127702,0.00021321,2]
[315059924,1708797048644,-435.13481469,0.00021321,2]
[315059925,1708797048654,-153.0,0.0002134,2]
[315059926,1708797048663,-153.1745188,0.0002134,2]
[315059927,1708797048673,-153.2073565,0.0002134,2]
[315059928,1708797048682,-153.0,0.0002134,2]
[315059929,1708797048692,-153.0,0.0002134,2]
[315059930,1708797048702,-153.0,0.0002134,2]
[315059931,1708797048711,-153.0,0.0002134,2]
[315059932,1708797048720,-153.0,0.0002134,2]
[315059933,1708797048730,-153.0,0.0002134,2]
[315059934,1708797048739,-153.0,0.0002134,2]
[315059935,1708797048748,-153.0,0.0002134,2]
[315059936,1708797048758,-500.0,0.00021369,2]
[315059937,1708797048767,-589.28847949,0.00021369,2]
[315059938,1708797048776,-534.01,0.00021369,2]
[315059939,1708797048785,-500.0,0.00021369,2]
[315059940,1708797048795,-151.0,0.00021369,2]
[315059941,1708797048806,-997.34,0.00021369,2]
[315059942,1708797048815,-500.0,0.00021369,2]
[315059943,1708797048824,-638.57,0.00021369,2]
[315059944,1708797048833,-713.63,0.00021369,2]
[315059945,1708797048842,-3292.48,0.00021369,2]
[315059946,1708797048851,-1108.84,0.00021369,2]
[315059947,1708797048860,-755.17,0.00021369,2]
[315059948,1708797048869,-924.56,0.00021369,2]
[315059949,1708797048878,-1624.67,0.00021369,2]
[315059950,1708797048887,-1070.74,0.00021369,2]
[315059951,1708797048897,-756.52,0.00021369,2]
[315059952,1708797048906,-1444.81,0.00021369,2]
[315059953,1708797048914,-660.55,0.00021369,2]
[315059954,1708797048924,-1698.5,0.00021369,2]
[315059955,1708797048932,-722.34,0.00021369,2]
[315059956,1708797048942,-7959.91,0.00021369,2]
[315059957,1708797048951,-6758.25,0.00021369,2]
[315059958,1708797048960,-500.0,0.00021369,2]
[315059959,1708797048969,-1696.47,0.00021369,2]
[315059960,1708797048978,-648.83,0.00021369,2]
[315059961,1708797048987,-770.78131,0.00021369,2]
[315059962,1708797048996,-530.69,0.00021369,2]
[315059963,1708797049005,-770.78131,0.00021369,2]
[315059964,1708797049014,-5173.66,0.00021369,2]
[315059965,1708797049024,-500.0,0.00021369,2]
[315059966,1708797049032,-2018.1,0.00021369,2]
[315059967,1708797049042,-240.2863309,0.0002137,2]
[315059968,1708797049053,-175.567272,0.00021416,2]
[315059969,1708797049062,-178.470543,0.00021416,2]
[315059970,1708797049071,-153.0,0.00021418,2]
[315059971,1708797049081,-166.666666,0.00021422,2]
[315059972,1708797049090,-300.0,0.00021427,2]
[315059973,1708797049100,-166.701822,0.00021447,2]
[315059974,1708797049109,-166.701822,0.00021447,2]
[315059975,1708797049118,-169.642876,0.00021447,2]
[315059976,1708797049127,-196.196581,0.00021447,2]
[315059977,1708797049138,-198.877478,0.00021447,2]
[315059978,1708797049149,-1011.0,0.000215,2]
[315059979,1708797049158,-187.803324,0.00021573,2]
[315059980,1708797049167,-181.717593,0.00021573,2]
[315059981,1708797049178,-211.741148,0.00021573,2]
[315059982,1708797049188,-199.163695,0.00021573,2]
[315059983,1708797049198,-300.0,0.0002162,2]
[315059984,1708797049208,-1000.0,0.00021624,2]
[315059985,1708797049218,-1000.0,0.00021631,2]
[315059986,1708797049228,-1000.0,0.00021632,2]
[315059987,1708797049238,-1000.0,0.00021632,2]
[315059988,1708797049247,-500.0,0.00021643,2]
[315059989,1708797049256,-534.01,0.00021643,2]
[315059990,1708797049266,-500.0,0.00021643,2]
[315059991,1708797049275,-997.34,0.00021643,2]
[315059992,1708797049284,-500.0,0.00021643,2]
[315059993,1708797049293,-450.195583,0.00021643,2]
[315059994,1708797049306,-450.195583,0.00021643,2]
[315059995,1708797049317,-638.57,0.00021643,2]
[315059996,1708797049326,-713.63,0.00021643,2]
[315059997,1708797049335,-3292.48,0.00021643,2]
[315059998,1708797049345,-1108.84,0.00021643,2]
[315059999,1708797049354,-755.17,0.00021643,2]
[315060000,1708797049364,-924.56,0.00021643,2]
[315060001,1708797049373,-1624.67,0.00021643,2]
[315060002,1708797049383,-1070.74,0.00021643,2]
[315060003,1708797049393,-756.52,0.00021643,2]
[315060004,1708797049403,-1444.81,0.00021643,2]
[315060005,1708797049412,-660.55,0.00021643,2]
[315060006,1708797049422,-1698.5,0.00021643,2]
[315060007,1708797049432,-722.34,0.00021643,2]
[315060008,1708797049441,-7959.91,0.00021643,2]
[315060009,1708797049451,-6758.25,0.00021643,2]
[315060010,1708797049460,-500.0,0.00021643,2]
[315060011,1708797049469,-1696.47,0.00021643,2]
[315060012,1708797049478,-648.83,0.00021643,2]
[315060013,1708797049486,-530.69,0.00021643,2]
[315060014,1708797049495,-5173.66,0.00021643,2]
[315060015,1708797049504,-500.0,0.00021643,2]
[315060016,1708797049514,-2018.1,0.00021643,2]
[315060017,1708797049522,-1000.0,0.0002166,2]
[315060018,1708797049531,-2874.92568718,0.00021664,2]
[315060019,1708797049540,-1000.0,0.00021696,2]
[315060020,1708797049553,-500.0,0.000217,2]
[315060021,1708797049562,-1000.0,0.00021701,2]
[315060022,1708797049571,-169.642876,0.00021715,2]
[315060023,1708797049581,-198.877478,0.00021715,2]
[315060024,1708797049590,-1000.0,0.00021716,2]
[315060025,1708797049600,-1000.0,0.00021724,2]
[315060026,1708797049609,-1000.0,0.00021726,2]
[315060027,1708797049618,-1000.0,0.00021727,2]
[315060028,1708797049628,-1000.0,0.00021754,2]
[315060029,1708797049638,-1000.0,0.00021759,2]
[315060030,1708797049647,-1000.0,0.0002176,2]
[315060031,1708797049655,-181.717593,0.00021761,2]
[315060032,1708797049664,-175.567272,0.00021761,2]
[315060033,1708797049674,-178.470543,0.00021761,2]
[315060034,1708797049683,-1000.0,0.00021767,2]
[315060035,1708797049692,-1000.0,0.00021767,2]
[315060036,1708797049701,-1000.0,0.00021793,2]
[315060037,1708797049710,-200.0,0.000218,2]
[315060038,1708797049719,-50000.0,0.00021806,2]
[315060039,1708797049728,-823.00791013,0.00021808,2]
[315060040,1708797049737,-1000.0,0.00021812,2]
[315060041,1708797049746,-1000.0,0.00021813,2]
[315060042,1708797049755,-300.0,0.00021813,2]
[315060043,1708797049764,-1000.0,0.00021832,2]
[315060044,1708797049773,-1000.0,0.00021834,2]
[315060045,1708797049782,-620.00233649,0.00021842,2]
[315060046,1708797049791,-1000.0,0.00021857,2]
[315060047,1708797049802,-1000.0,0.000219,14]
[315060048,1708797049811,-150.0,0.000219,2]
[315060049,1708797049820,-582.2392,0.000219,2]
[315060050,1708797049829,-501.62820445,0.00021917,2]
[315060051,1708797049838,-500.0,0.00021917,2]
[315060052,1708797049847,-500.0,0.00021917,2]
[315060053,1708797049857,-400.52042383,0.00021917,2]
[315060054,1708797049866,-500.0,0.00021917,2]
[315060055,1708797049875,-500.0,0.00021917,2]
[315060056,1708797049884,-254.67590599,0.00021917,2]
[315060057,1708797049893,-500.0,0.00021917,2]
[315060058,1708797049902,-500.0,0.00021917,2]
[315060059,1708797049912,-534.01,0.00021917,2]
[315060060,1708797049922,-500.0,0.00021917,2]
[315060061,1708797049931,-997.34,0.00021917,2]
[315060062,1708797049940,-500.0,0.00021917,2]
[315060063,1708797049949,-1000.0,0.00021917,5]
[315060064,1708797049958,-231.76470495,0.00021917,5]
[315060065,1708797049968,-638.57,0.00021917,2]
[315060066,1708797049977,-713.63,0.00021917,2]
[315060067,1708797049986,-3292.48,0.00021917,2]
[315060068,1708797049995,-1108.84,0.00021917,2]
[315060069,1708797050005,-755.17,0.00021917,2]
[315060070,1708797050014,-924.56,0.00021917,2]
[315060071,1708797050023,-1624.67,0.00021917,2]
[315060072,1708797050033,-1070.74,0.00021917,2]
[315060073,1708797050042,-756.52,0.00021917,2]
[315060074,1708797050054,-1444.81,0.00021917,2]
[315060075,1708797050064,-660.55,0.00021917,2]
[315060076,1708797050074,-1698.5,0.00021917,2]
[315060077,1708797050083,-722.34,0.00021917,2]
[315060078,1708797050093,-7959.91,0.00021917,2]
[315060079,1708797050102,-6758.25,0.00021917,2]
[315060080,1708797050111,-500.0,0.00021917,2]
[315060081,1708797050212,-1696.47,0.00021917,2]
[315060082,1708797050222,-648.83,0.00021917,2]
[315060083,1708797050231,-770.78131,0.00021917,2]
[315060084,1708797050241,-530.69,0.00021917,2]
[315060085,1708797050251,-770.78131,0.00021917,2]
[315060086,1708797050260,-5173.66,0.00021917,2]
[315060087,1708797050269,-503.82796477,0.00021917,2]
[315060088,1708797050279,-2018.1,0.00021917,2]
[315060089,1708797050288,-1412.943955,0.00021918,2]
[315060090,1708797050299,-10000.0,0.00021918,2]
[315060091,1708797050308,-694.41324967,0.00021918,2]
[315060092,1708797050317,-182.43376,0.0002197,2]
[315060093,1708797050326,-502.048253,0.0002197,2]
[315060094,1708797050335,-170.648064,0.0002197,2]
[315060095,1708797050344,-213.756459,0.0002197,2]
[315060096,1708797050353,-187.34775,0.0002197,2]
[315060097,1708797050362,-165.267222,0.0002197,2]
[315060098,1708797050372,-1856.271128,0.0002197,2]
[315060099,1708797050381,-449.453006,0.0002197,2]
[315060100,1708797050390,-674.179509,0.0002197,2]
[315060101,1708797050399,-166.302036,0.0002197,2]
[315060102,1708797050408,-309.926044,0.0002197,2]
[315060103,1708797050418,-169.642876,0.00021983,2]
[315060104,1708797050427,-196.196581,0.00021983,2]
[315060105,1708797050436,-198.877478,0.00021983,2]
[315060106,1708797050445,-350.81960582,0.00022,2]
[315060107,1708797050455,-3161.10965978,0.00022,5]
[315060108,1708797050464,-1130.38973235,0.00022,2]
[315060109,1708797050473,-300.0,0.00022006,2]
[315060110,1708797050482,-151.0,0.00022022,2]
[315060111,1708797050491,-153.0,0.0002212,2]
[315060112,1708797050500,-306.0,0.0002212,2]
[315060113,1708797050508,-163.0923202,0.0002212,2]
[315060114,1708797050517,-153.0,0.0002212,2]
[315060115,1708797050526,-153.0,0.0002212,2]
[315060116,1708797050535,-42650.6641511,0.00022121,2]
[315060117,1708797050636,-1709.28431698,0.00022121,2]
[315060118,1708797050771,-3871.6183292,0.00019298,2]
[315060119,1708797050780,-500.0,0.00019298,2]
[315060120,1708797050789,-3871.6183292,0.00019298,2]
[315060121,1708797050799,-872.93047126,0.00019298,2]
[315060122,1708797050809,-312.26940993,0.00019298,2]
[315060123,1708797050820,-1165.95,0.00019298,2]
[315060124,1708797051294,-257.30468228,0.00019178,2]
[315060125,1708797051330,-242.69531772,0.00019178,2]
[315060126,1708797051340,-356.45417233,0.00019178,2]
[315060127,1708797051352,-143.54582767,0.00019178,2]
[315060128,1708797051363,-1520.46844801,0.00019298,2]
[315060129,1708797051372,-213.62785206,0.00019298,2]
[315060135,1708797138249,2930.75984183,0.0001819,2]
[315060136,1708797169320,7849.1775042,0.00018039,2]
[315060142,1708797531576,188.451815,0.00018066,2]
[315060144,1708797674077,1183.9856604,0.0001808,2]
[315060147,1708797950220,-281.345214,0.00018288,2]
[315060148,1708797950240,-199.18323106,0.00018289,2]
[315060243,1708798233828,-281.345214,0.00018288,2]
[315060244,1708798233837,-504.86657876,0.00018289,2]
[315060245,1708798233847,-1767.67555616,0.000188,2]
[315060246,1708798233858,-1493.83200131,0.000188,2]
[315060247,1708798233885,-652.85347624,0.000188,2]
[315060292,1708798239227,-65.06939695,0.000188,2]
[315060293,1708798239237,-818.43474453,0.000189,2]
[315060294,1708798239247,-1725.38029265,0.00019,2]
[315060295,1708798239256,-154.95351395,0.00019077,2]
[315060296,1708798239266,-675.71646789,0.00019078,2]
[315060297,1708798239276,-300.0,0.00019167,2]
[315060298,1708798239286,-380.31,0.00019168,3]
[315060299,1708798239295,-190.16,0.00019168,3]
[315060300,1708798239305,-570.5,0.00019168,3]
[315060301,1708798239314,-639.82865704,0.00019177,2]
[315060302,1708798239323,-500.0,0.00019178,2]
[315060303,1708798239333,-646.47874491,0.00019178,2]
[315060304,1708798239342,-513.50648063,0.00019178,2]
[315060305,1708798239352,-500.91970631,0.00019178,2]
[315060306,1708798239362,-500.0,0.00019178,2]
[315060307,1708798239372,-500.0,0.00019178,2]
[315060308,1708798239381,-500.0,0.00019178,2]
[315060309,1708798239391,-500.0,0.00019178,2]
[315060310,1708798239401,-500.0,0.00019178,2]
[315060311,1708798239411,-501.47582872,0.00019178,2]
[315060312,1708798239420,-500.0,0.00019178,2]
[315060313,1708798239430,-500.0,0.00019178,2]
[315060314,1708798239439,-500.0,0.00019178,2]
[315060315,1708798239448,-229.23019617,0.00019178,2]
[315060316,1708798239458,-500.0,0.00019178,2]
[315060317,1708798239467,-500.0,0.00019178,2]
[315060318,1708798239477,-500.0,0.00019178,2]
[315060319,1708798239488,-500.0,0.00019178,2]
[315060320,1708798239500,-500.0,0.00019178,2]
[315060321,1708798239510,-500.0,0.00019178,2]
[315060322,1708798239519,-500.0,0.00019178,2]
[315060323,1708798239528,-500.0,0.00019178,2]
[315060324,1708798239541,-503.94439511,0.00019178,2]
[315060325,1708798239551,-500.0,0.00019178,2]
[315060326,1708798239560,-500.0,0.00019178,2]
[315060327,1708798239570,-500.0,0.00019178,2]
[315060328,1708798239580,-592.856663,0.00019178,2]
[315060329,1708798239590,-500.0,0.00019178,2]
[315060330,1708798239599,-500.53523058,0.00019178,2]
[315060331,1708798239608,-410.44774653,0.00019178,2]
[315060332,1708798239617,-213.51680516,0.00019178,2]
[315060333,1708798239626,-500.0,0.00019178,2]
[315060334,1708798239635,-500.63179742,0.00019178,2]
[315060335,1708798239645,-500.0,0.00019178,2]
[315060336,1708798239654,-500.0,0.00019178,2]
[315060337,1708798239663,-500.0,0.00019178,2]
[315060338,1708798239672,-502.47770452,0.00019178,2]
[315060339,1708798239682,-500.0,0.00019178,2]
[315060340,1708798239691,-500.0,0.00019178,2]
[315060341,1708798239700,-500.0,0.00019178,2]
[315060342,1708798239709,-159.02038948,0.00019178,2]
[315060343,1708798239718,-500.0,0.00019178,2]
[315060344,1708798239727,-500.0,0.00019178,2]
[315060345,1708798239736,-500.0,0.00019178,2]
[315060346,1708798239745,-500.0,0.00019178,2]
[315060347,1708798239754,-500.0,0.00019178,2]
[315060348,1708798239766,-500.81405947,0.00019178,2]
[315060349,1708798239775,-500.0,0.00019178,2]
[315060350,1708798239784,-500.0,0.00019178,2]
[315060351,1708798239794,-500.0,0.00019178,2]
[315060352,1708798239803,-501.03228653,0.00019178,2]
[315060353,1708798239812,-500.0,0.00019178,2]
[315060354,1708798239821,-399.76696753,0.00019178,2]
[315060355,1708798239831,-500.0,0.00019178,2]
[315060356,1708798239840,-500.0,0.00019178,2]
[315060357,1708798239850,-500.0,0.00019178,2]
[315060358,1708798239859,-612.59126247,0.00019178,2]
[315060359,1708798239868,-500.0,0.00019178,2]
[315060360,1708798239877,-500.0,0.00019178,2]
[315060361,1708798239887,-500.0,0.00019178,2]
[315060362,1708798239896,-500.0,0.00019178,2]
[315060363,1708798239905,-500.0,0.00019178,2]
[315060364,1708798239915,-500.0,0.00019178,2]
[315060365,1708798239924,-500.0,0.00019178,2]
[315060366,1708798239936,-500.0,0.00019178,2]
[315060367,1708798239944,-500.0,0.00019178,2]
[315060368,1708798239953,-235.35725535,0.00019178,2]
[315060369,1708798239962,-500.0,0.00019178,2]
[315060370,1708798239971,-500.0,0.00019178,2]
[315060371,1708798239980,-500.0,0.00019178,2]
[315060372,1708798239989,-500.15465197,0.00019178,2]
[315060373,1708798239999,-500.0,0.00019178,2]
[315060374,1708798240008,-505.1273313,0.00019178,2]
[315060375,1708798240017,-500.0,0.00019178,2]
[315060376,1708798240026,-1271.76,0.00019178,2]